[Event "Indian Blitz Championship 2023"]
[Site "Nashik"]
[Date "2024.03.07"]
[Round "6.6"]
[White "Jinan Jomon"]
[Black "Mitrabha, Guha"]
[Result "0-1"]
[ECO "A61"]
[WhiteElo "2380"]
[BlackElo "2526"]
[Annotator "TA"]
[PlyCount "92"]
[EventDate "2024.03.07"]
[EventType "blitz"]
[EventCountry "IND"]
[SourceTitle "playchess.com"]
[Source "ChessBase"]
[SourceQuality "1"]
[TimeControl "180+2"]

{[%evp 16,92,15,0,0,0,20,8,6,11,0,-26,16,4,21,8,33,0,0,-67,-73,-54,-41,-114,-72,-211,-237,-242,-245,-252,-258,-252,-265,-260,-247,-220,-150,-230,-146,-275,-93,-232,-225,-250,-216,-250,-225,-194,-194,-245,-243,-263,-241,-268,-268,-258,-258,-273,-237,-270,-184,-179,-152,-265,-266,-302,-271,-332,-322,-302,-300,-336,-336,-472,-453,-471,-481,-552,-527]} 1. c4 {[%emt 0:00:01]} c5 {[%emt 0:00:02]} 2. Nf3 {[%emt 0:00:02]} g6 {[%emt 0:00:02]} 3. e3 {[%emt 0:00:02]} Bg7 {[%emt 0:00:01]} 4. d4 {[%emt 0:00:02]} Nf6 {[%emt 0:00:01]} 5. Nc3 {[%emt 0:00:11]} O-O {[%emt 0:00:01]} 6. d5 {[%emt 0:00:04]} e6 {[%emt 0:00:01]} 7. Bd3 {[%emt 0:00:07]} exd5 {[%emt 0:00:02]} 8. cxd5 {[%emt 0:00:02]} d6 {[%emt 0:00:01]} 9. O-O {[%emt 0:00:03]} Bg4 {[%emt 0:00:01]} 10. Be2 {[%emt 0:00:25]} Bxf3 {[%emt 0:00:02]} 11. Bxf3 {[%emt 0:00:01]} Nbd7 {[%emt 0:00:01] The position is equal.} 12. e4 {[%emt 0:00:10]} a6 {[%emt 0:00:05]} 13. a4 {[%emt 0:00:03]} Ne8 {[%emt 0:00:01]} 14. Be2 {[%emt 0:00:06]} Nc7 {[%emt 0:00:01]} 15. Be3 {[%emt 0:00:09]} Rb8 {[%emt 0:00:03]} 16. a5 {[%emt 0:00:11]} Re8 {[%emt 0:00:01]} 17. f4 {[%emt 0:00:08]} ({White should play} 17. Qc1 $11) 17... Bxc3 $15 {[%emt 0:00:09]} 18. bxc3 {[%emt 0:00:02][%cal Oe4e5]} Rxe4 {[%emt 0:00:01]} 19. Bc1 {[%emt 0:00:11] White is now going downhill.} (19. Bd2 $15) 19... Qf6 {[%emt 0:00:03]} 20. Bf3 {[%emt 0:00:21]} (20. Bg4 $17 Nf8 (20... Qxc3 21. Ra3 $18) 21. Qb3) 20... Qxc3 $19 {[%emt 0:00:09]} 21. Bd2 {[%emt 0:00:29]} Qd4+ {[%emt 0:00:01]} 22. Kh1 {[%emt 0:00:01]} Ree8 {[%emt 0:00:03][%cal Oc7b5]} 23. Qc2 {[%emt 0:00:03]} Nb5 {[%emt 0:00:02]} (23... Nxd5 24. Rad1 $19) 24. Ra4 {[%emt 0:00:07]} Qf6 {[%emt 0:00:02]} 25. Bg4 {[%emt 0:00:08]} Re7 {[%emt 0:00:05]} 26. f5 {[%emt 0:00:04]} (26. Qc1 $17) 26... Ne5 {[%emt 0:00:03] [#] aiming for ...Nd4.} 27. Bh3 {[%emt 0:00:05]} (27. Qd1 $17) 27... Nd4 $2 {[%emt 0:00:06]} (27... g5 $19 {has better winning chances. Hoping for ...c4.} 28. Bg4 c4 29. Rxc4 Nxc4 30. Qxc4 Rbe8) 28. Qd1 {[%emt 0:00:03]} (28. Qc1 $17 Ree8 (28... Nxf5 $2 29. Bxf5 Ree8 30. Bc2 $18) (28... gxf5 $2 29. Bg5 $18) 29. fxg6 Qxg6 30. Be3) 28... g5 {[%emt 0:00:06]} (28... Nxf5 29. Raf4 Nd3 30. R4f3 $16) (28... gxf5 29. Be3 $17) 29. g3 {[%emt 0:00:11]} Rbe8 {[%emt 0:00:03]} 30. Bg2 {[%emt 0:00:04]} h6 {[%emt 0:00:06][%cal Oe7c7]} (30... Nxf5 $2 {too greedy.} 31. g4 $18) 31. Bc3 {[%emt 0:00:01]} Kg7 {[%emt 0:00:06]} ({Stronger than} 31... Nxf5 32. Qb1 $16) 32. Bxd4 {[%emt 0:00:02]} (32. Ba1 $142) 32... cxd4 {[%emt 0:00:01]} 33. Qxd4 {[%emt 0:00:02]} Nd7 {[%emt 0:00:02]} 34. Qxf6+ {[%emt 0:00:02]} Kxf6 {[%emt 0:00:01]} 35. Rb4 {[%emt 0:00:02]} Nc5 {[%emt 0:00:06]} 36. Rb6 {[%emt 0:00:01]} Rd7 {[%emt 0:00:06]} 37. Rc1 {[%emt 0:00:02]} Kg7 {[%emt 0:00:07]} 38. Bf3 {[%emt 0:00:04]} Re3 {[%emt 0:00:13]} 39. Kg2 {[%emt 0:00:01]} (39. Bg4 $17 f6 40. Bh5) 39... Ra3 {[%emt 0:00:07]} 40. h4 {[%emt 0:00:16][%cal Of5f6]} gxh4 {[%emt 0:00:03]} 41. gxh4 {[%emt 0:00:02]} Rxa5 {[%emt 0:00:02]} 42. f6+ {[%emt 0:00:08]} Kxf6 {[%emt 0:00:03]} 43. Bg4 {[%emt 0:00:02]} Rd8 {[%emt 0:00:05] White must now prevent ...Rg8.} 44. Rb4 {[%emt 0:00:03]} (44. Rf1+ {is a better defense.} Kg6 45. Rb2) 44... Ra4 {[%emt 0:00:11] Black is clearly winning.} 45. Rxa4 {[%emt 0:00:05]} Nxa4 {[%emt 0:00:01]} 46. Bh5 {[%emt 0:00:02]} Nc5 {[%emt 0:00:04] Weighted Error Value: White=0.39/Black=0.23 (precise) .  Missed win:     	---       	Black=1      Mistake:       	White=9     	---        Inaccurate:     	White=2     	Black=5      OK:         	White=11    	Black=14     Best:        	---       	Black=1} 0-1

[Event "Indian Blitz Championship 2023"]
[Site "Nashik"]
[Date "2024.03.07"]
[Round "6.7"]
[White "Karthik Venkataraman"]
[Black "Srihari L R"]
[Result "1-0"]
[ECO "E68"]
[WhiteElo "2609"]
[BlackElo "2490"]
[Annotator "TA"]
[PlyCount "115"]
[EventDate "2024.03.07"]
[EventType "blitz"]
[EventCountry "IND"]
[SourceTitle "playchess.com"]
[Source "ChessBase"]
[SourceQuality "1"]
[TimeControl "180+2"]

{[%evp 23,115,29,41,-67,-64,-68,-61,-91,-48,-43,-40,-49,-21,-20,-13,-17,-10,-9,-11,-197,-196,-195,-189,-214,-218,-244,-150,-166,-169,-167,-14,-71,0,0,0,0,0,0,-4,-12,0,0,0,0,58,55,100,91,89,68,93,83,370,355,594,577,739,691,700,688,581,508,4392,353,29950,29943,29963,12797,29978,29966,29978,29975,29977,29960,29944,0,29966,0,29967,29958,29982,29983,29983,29984,29984,29981,29981,29981,29984,29985,29992,29993,29994,29995]} 1. g3 {[%emt 0:00:01]} Nf6 {[%emt 0:00:03]} 2. Bg2 {[%emt 0:00:01]} g6 {[%emt 0:00:07]} 3. c4 {[%emt 0:00:02]} Bg7 {[%emt 0:00:01]} 4. Nc3 {[%emt 0:00:02]} O-O {[%emt 0:00:01]} 5. Nf3 {[%emt 0:00:00]} d6 {[%emt 0:00:01]} 6. d4 {[%emt 0:00:01]} Nbd7 {[%emt 0:00:04]} 7. O-O {[%emt 0:00:02]} e5 {[%emt 0:00:01]} 8. e4 {[%emt 0:00:01]} exd4 {[%emt 0:00:01]} 9. Nxd4 {[%emt 0:00:01][%cal Bf3d4,Bd4e2,Be2f4][%mdl 32]} Nc5 {[%emt 0:00:01]} 10. Re1 {[%emt 0:00:02]} Re8 {[%emt 0:00:01]} 11. h3 {[%emt 0:00:01]} Bd7 {[%emt 0:00:01]} 12. Bf4 {[%emt 0:00:07]} h6 {[%emt 0:00:01]} 13. f3 {[%emt 0:00:06]} (13. Rb1 $14) 13... Nh5 $15 {[%emt 0:00:07]} 14. Nde2 {[%emt 0:00:15]} Nxf4 {[%emt 0:00:07]} 15. Nxf4 {[%emt 0:00:01] Schwarz steht etwas besser.} Be5 {[%emt 0:00:10]} 16. Qd2 {[%emt 0:00:11]} Qg5 {[%emt 0:00:03]} 17. Kh2 {[%emt 0:00:03]} h5 {[%emt 0:00:11] Und jetzt ...h4 wäre schön.} 18. h4 {[%emt 0:00:36]} Bxf4 {[%emt 0:00:03]} 19. Qxf4 {[%emt 0:00:01]} Qxf4 {[%emt 0:00:03]} 20. gxf4 {[%emt 0:00:01]} Nd3 $36 {[%emt 0:00:01][%csl LRb2,LRe1,LRf4][%mdl 2048] Weiss steht unter Druck.} 21. Nd5 $2 {[%emt 0:00:01]} Nxe1 $19 {[%emt 0:00:22]} (21... Nxb2 $2 22. Rab1 (22. Nxc7 Nxc4 23. Rac1 Nb6 $18) 22... Nxc4 23. Nf6+ (23. Rxb7 Kg7 $11) (23. Nxc7 b5 $18) 23... Kg7 24. Nxd7 $18) 22. Rxe1 {[%emt 0:00:12]} Red8 {[%emt 0:00:04]} 23. f5 {[%emt 0:00:10]} c6 {[%emt 0:00:06]} 24. Nf4 {[%emt 0:00:01]} Kg7 {[%emt 0:00:09]} 25. fxg6 {[%emt 0:00:01]} fxg6 {[%emt 0:00:02]} 26. Rd1 {[%emt 0:00:01]} Rf8 $2 {[%emt 0:00:21]} (26... Kf6 $19 {Droht stark ...g5.} 27. Kg3 Be8) 27. Kg3 $11 {[%emt 0:00:08] [#]} Rf6 {[%emt 0:00:08]} ({Vorzuziehen ist} 27... d5 $1 $17 {[%cal Og6g5]} 28. cxd5 Rae8) 28. e5 {[%emt 0:00:04]} Rxf4 {[%emt 0:00:31]} 29. Kxf4 {[%emt 0:00:00]} dxe5+ {[%emt 0:00:01]} 30. Kxe5 {[%emt 0:00:06][%mdl 4096] Endspiel. KRB-KRB} Re8+ {[%emt 0:00:00]} 31. Kf4 $1 {[%emt 0:00:08]} Bf5 {[%emt 0:00:08]} 32. Bf1 {[%emt 0:00:02] Wehrt Re2 ab} Kf6 {[%emt 0:00:10]} 33. c5 {[%emt 0:00:08]} Be6 {[%emt 0:00:02]} (33... a5 $11) 34. Rd6 $14 {[%emt 0:00:07] Zielt auf Bc4 ab.} Ke7 {[%emt 0:00:21] [#]} 35. Bd3 $1 {[%emt 0:00:02]} Rf8+ {[%emt 0:00:16]} 36. Ke3 {[%emt 0:00:10]} Bd5 {[%emt 0:00:03]} 37. f4 {[%emt 0:00:07]} (37. Bxg6 Rxf3+ (37... Bxf3 38. Rd4 $14) 38. Kd4 Rf2 $11 (38... Bxa2 39. Ke5 $11)) 37... Rf6 $2 {[%emt 0:00:11][%mdl 8192]} (37... b6 $16) 38. Bxg6 $18 {[%emt 0:00:14]} Bxa2 $2 {[%emt 0:00:03]} (38... b6 {war nötig.} 39. a3 (39. Bxh5 Rf8 $18) 39... bxc5 40. Rxf6 Kxf6 41. Bxh5 a5) 39. Rxf6 {[%emt 0:00:03]} (39. Bxh5 Rf5 40. Bg4 Rxc5 41. Rd7+ Kf6 $18) 39... Kxf6 {[%emt 0:00:01]} 40. Bxh5 {[%emt 0:00:00] KB-KB} b6 {[%emt 0:00:00]} 41. Bf3 {[%emt 0:00:13]} bxc5 {[%emt 0:00:02]} 42. Bxc6 {[%emt 0:00:01]} a5 {[%emt 0:00:10]} (42... Bf7 $142 43. Bf3 Be6) 43. Be4 $2 {[%emt 0:00:05]} (43. Be8 c4 44. Ba4) 43... Bb3 $2 {[%emt 0:00:04]} (43... Bf7 $18 44. Bf3 Kg7) 44. h5 {[%emt 0:00:02][%cal Bh4h5,Bh5h6][%mdl 32]} a4 {[%emt 0:00:02]} 45. h6 {[%emt 0:00:04] Beabsichtigt Kd3 und Matt.} Bc4 {[%emt 0:00:02]} 46. Bc2 {[%emt 0:00:06]} Bb5 {[%emt 0:00:02]} 47. Kd2 {[%emt 0:00:05]} Bc4 {[%emt 0:00:03]} 48. Kc3 {[%emt 0:00:13]} Bd5 {[%emt 0:00:00]} 49. Kd2 {[%emt 0:00:11]} Bc4 $1 {[%emt 0:00:04]} 50. Ke3 $2 {[%emt 0:00:05]} (50. h7 {setzt Matt} Kg7 51. Bg6 (51. Bxa4 Kxh7 52. Bc2+ Kg7 $11) 51... Kh8 52. f5 Kg7 53. f6+ Kxf6 54. h8=Q+ (54. h8=R Kxg6 55. Rc8 Kf6 $18) 54... Kxg6 55. Qe8+ Kf6 56. Qxa4) 50... Bd5 $2 {[%emt 0:00:03][%mdl 8192]} (50... Bb5 $11 51. f5 Be8) 51. f5 {[%emt 0:00:12][%cal Bf4f5,Bf5f6,Bf6f7][%mdl 32] Weiß setzt Matt.} Bc4 {[%emt 0:00:01]} 52. h7 {[%emt 0:00:01]} Kg7 {[%emt 0:00:01]} 53. f6+ {[%emt 0:00:01]} Kh8 {[%emt 0:00:01]} 54. Kf4 {[%emt 0:00:01]} Bf7 {[%emt 0:00:04]} 55. Ke5 {[%emt 0:00:01]} Bc4 {[%emt 0:00:03]} 56. Kd6 {[%emt 0:00:02]} Bb3 {[%emt 0:00:01]} 57. Bxb3 {[%emt 0:00:02]} axb3 {[%emt 0:00:01]} 58. f7 {[%emt 0:00:01] Weiß hat das Spiel gedreht.   Gewichteter Fehlerwert: Weiß=0.56/Schwarz=0.72.  Verlustzug:     	Weiß=1     	Schwarz=2     Fehler:       	Weiß=1     	Schwarz=5     Ungenau:       	Weiß=1     	Schwarz=4     OK:         	Weiß=8     	Schwarz=7     Bester:       	Weiß=4     	Schwarz=4     Stark:        	Weiß=2     	---} 1-0

[Event "Indian Blitz Championship 2023"]
[Site "Nashik"]
[Date "2024.03.07"]
[Round "6.8"]
[White "Abhishek, Kelkar"]
[Black "Ravi, Teja S."]
[Result "0-1"]
[ECO "D11"]
[WhiteElo "2182"]
[BlackElo "2437"]
[Annotator "TA"]
[PlyCount "90"]
[EventDate "2024.03.07"]
[EventType "blitz"]
[EventCountry "IND"]
[SourceTitle "playchess.com"]
[Source "ChessBase"]
[SourceQuality "1"]
[TimeControl "180+2"]

{[%evp 17,90,426,503,235,482,512,550,505,469,383,462,454,452,430,434,115,75,135,125,129,93,0,0,-35,0,-108,-47,-139,0,0,18,18,19,17,18,23,15,-122,-12,-14,-13,-35,-22,-29,-13,-14,-13,-95,-96,-137,-152,-155,0,-52,-59,-61,-61,-62,-63,-29976,-5081,-29973,-29974,-29974,-29975,-29981,-29982,-29982,-29983,-29983,-29984,-29984,-29985,-29985,-29986]} 1. d4 {[%emt 0:00:02]} d5 {[%emt 0:00:01]} 2. c4 {[%emt 0:00:01]} c6 {[%emt 0:00:00]} 3. Nf3 {[%emt 0:00:01]} Nf6 {[%emt 0:00:01]} 4. Qc2 {[%emt 0:00:01]} dxc4 {[%emt 0:00:02]} 5. e4 {[%emt 0:00:01]} Bg4 {[%emt 0:00:10]} 6. Bxc4 {[%emt 0:00:48]} Bxf3 {[%emt 0:00:02]} 7. gxf3 {[%emt 0:00:02]} Qxd4 {[%emt 0:00:01]} 8. Be3 {[%emt 0:00:06]} Qe5 {[%emt 0:00:01]} 9. Qb3 {[%emt 0:00:12]} Nbd7 {[%emt 0:00:50]} 10. Bxf7+ {[%emt 0:00:08]} (10. Qxb7 Rb8 11. Qxc6 (11. Qxa7 Qxb2 12. Qd4 e6 $11) 11... e6 $11 (11... Rxb2 12. Qc8#) (11... Qxb2 12. O-O $16)) 10... Kd8 {[%emt 0:00:00]} 11. Nc3 {[%emt 0:00:13]} (11. Qxb7 Rb8 12. Qxa7 (12. Qxc6 Qxb2 13. Qc3 e6 $16) 12... Qxb2 $16) 11... g6 {[%emt 0:00:59]} 12. Qxb7 {[%emt 0:00:45]} Rb8 {[%emt 0:00:01]} 13. Qxa7 {[%emt 0:00:03]} Rxb2 {[%emt 0:00:17]} 14. Bd4 {[%emt 0:00:03]} Qb8 {[%emt 0:00:16]} 15. Qa5+ {[%emt 0:00:07]} Qc7 {[%emt 0:00:09]} 16. Qa3 $2 {[%emt 0:00:07]} (16. Qxc7+ $18 {has better winning chances.} Kxc7 17. Nd5+ cxd5 18. Rc1+ (18. Bxb2 Bh6 $18) 18... Kd6 19. Bxb2) 16... e5 $16 {[%emt 0:00:06]} 17. Qxb2 {[%emt 0:00:12]} exd4 {[%emt 0:00:01]} 18. Ne2 {[%emt 0:00:02]} Ne5 {[%emt 0:00:00] [#]} 19. Bc4 {[%emt 0:00:15]} (19. Qxd4+ $6 Nfd7 (19... Ke7 20. Qc3 $16) 20. Kf1 Nxf7 $15) (19. Kf1 $1 $16 {[%cal Oe2d4] aiming for Nxd4!} Nxf7 (19... Bd6 20. f4) 20. Nxd4) 19... Nxf3+ $11 {[%emt 0:00:16]} 20. Kd1 {[%emt 0:00:04]} Nxe4 {[%emt 0:00:02]} 21. Rf1 {[%emt 0:00:17]} (21. Nxd4 $11 {keeps the balance.} Qd6 22. Qb6+ Ke7 23. Re1 Nxe1 24. Kxe1) 21... Bg7 {[%emt 0:00:05]} (21... Qxh2 $6 22. Ng3 (22. Nxd4 Qd6 $11) 22... Nc3+ (22... Nxg3 23. Qb8+ Kd7 24. Rb1 $18) 23. Kc2 $11) (21... Qa5 $1 $17 {[%cal Of8a3] ...Ba3! would now be deadly.} 22. Rb1 Bd6 (22... Nxh2 23. Qb8+ Ke7 24. Rb7+ Kf6 25. Qf4+ Qf5 26. Rf7#) 23. Qb6+ Qxb6 24. Rxb6 Kc7 (24... Bxh2 25. Rxc6 Nfd2 26. Bd3 $11) (24... Nxh2 25. Nxd4 Nxf1 26. Bxf1 $15)) 22. Rb1 {[%emt 0:00:01]} (22. Qa3 $1 $15 Nxh2 23. Bd3) 22... d3 {[%emt 0:00:06]} ({Better is} 22... Ned2 $17 23. Qb8+ Kd7 24. Qxc7+ (24. Be6+ $2 Kd6 $19) 24... Kxc7) 23. Qb8+ $11 {[%emt 0:00:06]} Qxb8 {[%emt 0:00:01]} (23... Kd7 $5 24. Be6+ (24. Qxc7+ Kxc7 25. Bxd3 Ned2 $17) 24... Kd6 25. Qb4+ c5 (25... Kxe6 $2 26. Qxe4+ Be5 27. Qxf3 $18) (25... Ke5 26. Ng1 $11) 26. Qxe4 dxe2+ 27. Qxe2 Qc6 $16) 24. Rxb8+ {[%emt 0:00:01]} Kc7 {[%emt 0:00:00]} 25. Rxh8 {[%emt 0:00:02]} (25. Bxd3 Rxb8 (25... Kxb8 26. Bxe4 Rd8+ 27. Kc1 $17) 26. Bxe4 Rd8+ (26... Nxh2 27. Rh1 $11) 27. Kc2 Nd2 $19 (27... Nxh2 28. Rh1 $11)) 25... Bxh8 {[%emt 0:00:10]} 26. Bxd3 {[%emt 0:00:02]} Nxh2 {[%emt 0:00:04] [#]} 27. Ng3 {[%emt 0:00:10]} (27. Re1 $1 $11 Nxf2+ 28. Kc2) 27... Nxf1 {[%emt 0:00:02]} ({Black should try} 27... Nc3+ $17 28. Kd2 Nxf1+ 29. Bxf1 Nd5 (29... Nxa2 $2 30. f4 $19)) 28. Nxe4 $11 {[%emt 0:00:01]} Nh2 {[%emt 0:00:02]} 29. a4 {[%emt 0:00:00]} Ng4 {[%emt 0:00:03]} 30. a5 {[%emt 0:00:01]} Bd4 {[%emt 0:00:01]} 31. Ke2 {[%emt 0:00:03]} Ne5 {[%emt 0:00:00]} 32. Ng5 {[%emt 0:00:04]} (32. Bb1 $11 {remains equal.}) 32... Nxd3 $17 {[%emt 0:00:04]} 33. Kxd3 {[%emt 0:00:01]} Bxf2 {[%emt 0:00:01]} 34. Nxh7 {[%emt 0:00:01]} Be1 $2 {[%emt 0:00:01]} (34... Kb7 $1 $17 {[%cal Rb7a6]} 35. Nf8 g5) 35. a6 {[%emt 0:00:01]} ({White should play} 35. Nf8 $1 $11) 35... Kb6 $15 {[%emt 0:00:01]} 36. Nf8 {[%emt 0:00:03]} g5 {[%emt 0:00:00]} (36... Kxa6 37. Nxg6 Kb7 38. Ke3 $11) 37. Ne6 {[%emt 0:00:02]} g4 {[%emt 0:00:02]} (37... Kxa6 38. Nxg5 Bh4 39. Nf7 $11) 38. Nc5 $2 {[%emt 0:00:02][%mdl 8192]} (38. Ke2 $15) 38... Bf2 {[%emt 0:00:04]} (38... Kxc5 39. a7 g3 40. a8=Q $18 (40. a8=B {leads to mate.} g2 41. Ke3 g1=Q+ 42. Kf4 Bh4 43. Kf5 Qg2 44. Ke5 Qf3 45. Bb7 Bg5 46. Bxc6 Qf4+ 47. Ke6 Qf6+ 48. Kd7 Qxc6#)) (38... g3 $142 39. Nd7+ Kxa6 40. Nc5+ Ka7 41. Nb3 g2 42. Ke4 g1=Q (42... g1=R $2 43. Nd4 $19) 43. Nd4 Qg2+ 44. Kd3 c5 45. Nc2 c4+ (45... Qd2+ {gets mated.} 46. Ke4 Qxc2+ 47. Kf4 c4 48. Kg4 Qg6+ 49. Kf4 c3 50. Ke3 c2 51. Kf3 c1=Q 52. Ke2 Qg2+ 53. Kd3 Qc3#) 46. Kxc4 Qxc2+ 47. Kd4 Qe2 48. Kd5 Bc3 49. Kc6 Qe6+ 50. Kb5 Qa6+ 51. Kc5 Kb7 52. Kd5 Qc6#) 39. Ne4 {[%emt 0:00:01]} g3 {[%emt 0:00:01]} 40. Ke2 {[%emt 0:00:01]} Kxa6 {[%emt 0:00:01]} 41. Nxf2 {[%emt 0:00:08]} gxf2 {[%emt 0:00:00]} 42. Kxf2 {[%emt 0:00:01]} Kb5 {[%emt 0:00:01]} 43. Ke3 {[%emt 0:00:00]} Kc4 {[%emt 0:00:00]} 44. Kd2 {[%emt 0:00:01] [#]} Kb3 $1 {[%emt 0:00:01]} 45. Kd3 {[%emt 0:00:01] [#]} c5 $1 {[%emt 0:00:00]} 0-1

[Event "Indian Blitz Championship 2023"]
[Site "Nashik"]
[Date "2024.03.07"]
[Round "6.9"]
[White "Pimpalkhare Vedant"]
[Black "Kushagra Mohan"]
[Result "1/2-1/2"]
[ECO "E05"]
[WhiteElo "2254"]
[BlackElo "2351"]
[Annotator "TA"]
[PlyCount "123"]
[EventDate "2024.03.07"]
[EventType "blitz"]
[EventCountry "IND"]
[SourceTitle "playchess.com"]
[Source "ChessBase"]
[SourceQuality "1"]
[TimeControl "180+2"]

{[%evp 12,123,28,10,23,33,47,30,31,31,26,41,61,66,84,77,72,72,87,73,70,73,94,72,102,47,39,0,0,-14,0,7,65,0,34,0,0,0,0,0,0,0,23,23,20,25,17,21,25,25,25,7,9,0,0,0,0,0,18,18,18,3,19,18,26,0,0,0,0,0,0,0,0,0,0,0,0,0,0,0,0,0,0,0,0,0,0,0,0,0,0,0,0,0,0,0,0,0,0,0,0,0,0,0,0,0,0,0,0,0,0,0,0,0]} 1. d4 {[%emt 0:00:01]} Nf6 {[%emt 0:00:01]} 2. Nf3 {[%emt 0:00:01]} e6 {[%emt 0:00:00]} 3. g3 {[%emt 0:00:02]} d5 {[%emt 0:00:01]} 4. Bg2 {[%emt 0:00:01]} Be7 {[%emt 0:00:00]} 5. O-O {[%emt 0:00:02]} O-O {[%emt 0:00:01]} 6. c4 {[%emt 0:00:01]} dxc4 {[%emt 0:00:01]} 7. Ne5 {[%emt 0:00:00]} Nd5 {[%emt 0:00:02]} 8. Nxc4 {[%emt 0:00:09]} b5 {[%emt 0:00:00]} 9. Ne3 {[%emt 0:00:04]} Bb7 {[%emt 0:00:05] White has an edge.} 10. Nxd5 {[%emt 0:00:02]} Bxd5 {[%emt 0:00:02]} 11. e4 {[%emt 0:00:02]} Bb7 {[%emt 0:00:09]} 12. Be3 {[%emt 0:00:08]} a6 {[%emt 0:00:05]} 13. Nd2 {[%emt 0:00:05]} Nd7 {[%emt 0:00:12]} 14. Rc1 {[%emt 0:00:05]} Nb6 {[%emt 0:00:05]} 15. Qe2 {[%emt 0:00:08]} Rc8 {[%emt 0:00:06]} 16. Rfd1 {[%emt 0:00:02]} Kh8 {[%emt 0:00:11]} 17. h4 {[%emt 0:00:16]} f5 {[%emt 0:00:02] [#]} 18. d5 {[%emt 0:00:56]} exd5 $14 {[%emt 0:00:13]} 19. Bxb6 {[%emt 0:00:03]} cxb6 {[%emt 0:00:04]} 20. Rxc8 {[%emt 0:00:11]} Qxc8 {[%emt 0:00:02]} 21. exd5 {[%emt 0:00:15]} Bf6 {[%emt 0:00:16]} (21... Bd6 $11) 22. Nb3 {[%emt 0:00:16]} (22. d6 $14) 22... Rd8 {[%emt 0:00:01][%cal Of5f4]} 23. d6 {[%emt 0:00:08][%cal Od6d7]} Bxg2 {[%emt 0:00:11]} 24. Kxg2 {[%emt 0:00:01]} h6 {[%emt 0:00:02]} 25. Qf3 {[%emt 0:00:32] Inhibits Qc6. Active counter play!} Be5 {[%emt 0:00:14]} 26. Rd5 {[%emt 0:00:07]} Qe6 {[%emt 0:00:14]} 27. Nd4 {[%emt 0:00:07]} Bxd4 {[%emt 0:00:44]} 28. Rxd4 {[%emt 0:00:01]} Rxd6 {[%emt 0:00:01]} 29. Rxd6 {[%emt 0:00:01]} Qxd6 {[%emt 0:00:01]} 30. Qxf5 $11 {[%emt 0:00:02][%mdl 4096] Endgame. KQ-KQ} Qc6+ {[%emt 0:00:06]} 31. Kh2 {[%emt 0:00:02]} Qc4 {[%emt 0:00:07]} 32. Qf8+ {[%emt 0:00:04]} Kh7 $1 {[%emt 0:00:01]} 33. Qf5+ {[%emt 0:00:01]} Kg8 {[%emt 0:00:01]} 34. a3 {[%emt 0:00:05]} Qc5 {[%emt 0:00:08]} 35. Qe6+ {[%emt 0:00:04]} Kf8 {[%emt 0:00:04]} 36. Kg2 {[%emt 0:00:00]} a5 {[%emt 0:00:04]} 37. Qe2 {[%emt 0:00:04]} b4 {[%emt 0:00:05]} 38. axb4 {[%emt 0:00:02]} Qxb4 {[%emt 0:00:00] The position is equal.} 39. g4 {[%emt 0:00:03]} Qd4 {[%emt 0:00:04]} 40. Qf3+ {[%emt 0:00:02]} Kg8 {[%emt 0:00:02]} 41. b3 {[%emt 0:00:01]} Qc5 {[%emt 0:00:04]} 42. Qa8+ {[%emt 0:00:02]} Qf8 {[%emt 0:00:06]} 43. Qd5+ {[%emt 0:00:01]} Kh8 {[%emt 0:00:03]} 44. g5 {[%emt 0:00:01]} hxg5 {[%emt 0:00:13]} 45. hxg5 {[%emt 0:00:01] Hoping for g6.} Qe8 {[%emt 0:00:05]} 46. Qf5 {[%emt 0:00:02]} Qc6+ {[%emt 0:00:02]} 47. Kg3 {[%emt 0:00:03] [#] Black must now prevent g6.} Qc3+ {[%emt 0:00:01]} 48. f3 {[%emt 0:00:02]} Qe1+ {[%emt 0:00:01]} 49. Kg2 {[%emt 0:00:01]} Qe2+ {[%emt 0:00:02]} 50. Kg3 {[%emt 0:00:02]} Qe1+ {[%emt 0:00:01]} 51. Kg2 {[%emt 0:00:03]} Qd2+ {[%emt 0:00:01]} 52. Kg3 {[%emt 0:00:02]} Qd6+ {[%emt 0:00:01]} 53. Kg2 {[%emt 0:00:01] Strongly threatening g6.} Qd2+ {[%emt 0:00:04]} 54. Kh3 {[%emt 0:00:00] And now g6 would win.} Qe1 {[%emt 0:00:13]} 55. g6 {[%emt 0:00:06][%cal Rf5f8]} Qh1+ {[%emt 0:00:02]} 56. Kg3 {[%emt 0:00:01][%cal Rf5f8]} Qg1+ {[%emt 0:00:01]} 57. Kh3 {[%emt 0:00:06][%cal Rf5c8]} Qh1+ {[%emt 0:00:01]} 58. Kg3 {[%emt 0:00:02][%cal Rf5c8]} Qg1+ {[%emt 0:00:01]} 59. Kh3 {[%emt 0:00:02][%cal Rf5c8]} Qf1+ {[%emt 0:00:02]} 60. Kg3 $1 {[%emt 0:00:01][%cal Rf5c8]} Qg1+ {[%emt 0:00:01]} 61. Kh3 {[%emt 0:00:01][%cal Rf5c8]} Qh1+ {[%emt 0:00:03]} 62. Kg3 {[%emt 0:00:00] Weighted Error Value: White=0.07 (flawless) /Black=0.06 (flawless) .  Mistake:       	White=2     	Black=1      Inaccurate:     	White=3     	Black=1      OK:         	White=13    	Black=21     Best:        	White=1     	Black=5      Strong:       	White=1     	Black=1} 1/2-1/2